[Event "ESTCC U50 2018"]
[Site "Walbrzych"]
[Date "2018.04.14"]
[Round "1"]
[White "Puroila, Sippo"]
[Black "Bowmer, Kevin"]
[Result "1/2-1/2"]
[ECO "A36"]
[WhiteElo "1838"]
[BlackElo "2064"]
[Annotator "NA"]
[PlyCount "72"]
[EventDate "2018.??.??"]
[EventCountry "POL"]
[SourceTitle "playchess.com"]
[Source "ChessBase"]
[SourceQuality "1"]
[WhiteTeam "Finland"]
[BlackTeam "England"]
[WhiteTeamCountry "FIN"]
[BlackTeamCountry "ENG"]
[TimeControl "40/5400+30:1800+30"]

1. c4 {[%emt 0:00:00]} g6 {[%emt 0:00:09]} 2. Nc3 {[%emt 0:00:00]} Bg7 {[%emt 0:00:12]} 3. g3 {[%emt 0:00:06]} c5 {[%emt 0:00:59]} 4. Bg2 {[%emt 0:00:09]} Nc6 {[%emt 0:00:24]} 5. e4 {[%emt 0:01:39]} d6 {[%emt 0:00:59]} 6. Nge2 {[%emt 0:00:10]} Nf6 {[%emt 0:00:18]} 7. d3 {[%emt 0:00:17]} O-O {[%emt 0:00:51]} 8. h3 {[%emt 0:00:08]} Ne8 {[%emt 0:02:36]} 9. O-O {[%emt 0:00:10] A36: Symmetrical English vs ...g6: 4 Bg2 Bg7} Nc7 {[%emt 0:00:27]} 10. f4 {[%emt 0:00:32]} Ne6 {[%emt 0:00:48]} 11. Rb1 {[%emt 0:01:11]} a6 $146 {[%emt 0:02:07]} ({Predecessor:} 11... Ned4 12. b3 e6 13. Bb2 a6 14. Kh2 Rb8 15. Qd2 Qa5 16. Rbe1 b5 {1-0 (54) Barbosa,O (2518)-Song,M (2340) Las Vegas 2015}) 12. a3 {[%emt 0:00:39]} Rb8 {[%emt 0:00:56]} 13. f5 {[%emt 0:12:11]} Ned4 {[%emt 0:01:04]} 14. g4 {[%emt 0:00:21]} e6 {[%emt 0:07:11]} 15. Ng3 {[%emt 0:01:25]} Re8 {[%emt 0:12:34]} 16. fxe6 {[%emt 0:13:27]} fxe6 {[%emt 0:04:51]} 17. Be3 {[%emt 0:03:12]} Be5 {[%emt 0:08:08]} 18. Bf4 {[%emt 0:04:37]} Rf8 {[%emt 0:01:16]} 19. Bxe5 {[%emt 0:00:33]} Nxe5 {[%emt 0:00:46]} 20. Rxf8+ {[%emt 0:01:23]} (20. Nce2 $17) 20... Qxf8 {[%emt 0:00:31]} 21. Nce2 {[%emt 0:06:34]} Qh6 {[%emt 0:06:39]} 22. Nf1 {[%emt 0:03:43]} Ndf3+ {[%emt 0:05:20]} 23. Bxf3 {[%emt 0:08:58]} Nxf3+ {[%emt 0:00:15]} 24. Kg2 {[%emt 0:00:28]} Nd4 {[%emt 0:09:02]} 25. Nxd4 {[%emt 0:00:26]} cxd4 {[%emt 0:00:12]} 26. Qd2 {[%emt 0:00:20]} Qxd2+ {[%emt 0:01:23]} 27. Nxd2 {[%emt 0:00:03]} Bd7 {[%emt 0:00:18]} 28. Rf1 {[%emt 0:00:04]} Rf8 {[%emt 0:01:22]} 29. Rxf8+ {[%emt 0:01:46]} Kxf8 {[%emt 0:00:04]} 30. g5 {[%emt 0:00:10]} Ke7 {[%emt 0:06:53]} 31. Nb3 {[%emt 0:01:37]} e5 {[%emt 0:00:36]} 32. Nd2 {[%emt 0:01:22]} a5 {[%emt 0:06:08]} 33. b3 {[%emt 0:01:05]} b5 {[%emt 0:01:35]} 34. h4 $11 {[%emt 0:06:19]} a4 {[%emt 0:02:28]} 35. b4 bxc4 {[%emt 0:04:39]} 36. dxc4 {[%emt 0:02:12]} Bg4 {[%emt 0:02:29]} 1/2-1/2

[Event "ESTCC U50 2018"]
[Site "Walbrzych"]
[Date "2018.04.14"]
[Round "1"]
[White "Webster, Jim J"]
[Black "Van de Wynkele, Herman"]
[Result "0-1"]
[ECO "A40"]
[WhiteElo "1769"]
[BlackElo "2048"]
[Annotator "NA"]
[PlyCount "94"]
[EventDate "2018.??.??"]
[EventCountry "POL"]
[SourceTitle "playchess.com"]
[Source "ChessBase"]
[SourceQuality "1"]
[WhiteTeam "Scotland"]
[BlackTeam "Belgium"]
[WhiteTeamCountry "SCO"]
[BlackTeamCountry "BEL"]
[TimeControl "40/5400+30:1800+30"]

1. d4 {[%emt 0:00:00]} g6 {[%emt 0:00:05]} 2. c4 {[%emt 0:00:00]} c5 {[%emt 0:00:14]} 3. d5 {[%emt 0:00:08]} b5 {[%emt 0:00:08]} 4. cxb5 {[%emt 0:00:05]} a6 {[%emt 0:00:06]} 5. b6 {[%emt 0:00:08]} Bg7 {[%emt 0:00:17]} 6. Nc3 {[%emt 0:00:19]} d6 {[%emt 0:00:08]} 7. e4 {[%emt 0:00:35]} Nf6 {[%emt 0:00:05]} 8. Nf3 {[%emt 0:00:41]} O-O {[%emt 0:00:08]} 9. Be2 {[%emt 0:00:11]} Nbd7 {[%emt 0:00:42]} 10. O-O {[%emt 0:00:46]} Qxb6 {[%emt 0:02:26]} 11. Qc2 {[%emt 0:05:04] A57: Benko/Volga Gambit} (11. Nd2 Qc7 12. Nc4 Nb6 13. Bg5 Nxc4 14. Bxc4 Rb8 15. Qd2 Rb4 16. b3 Ng4 17. Rac1 f6 18. Bf4 f5 19. exf5 Rxf5 20. Ne4 {½-½ (47) Kunin,V (2537)-Antoniewski,R (2559) Austria 2012}) 11... Bb7 {[%emt 0:06:04]} 12. Bc4 $146 {[%emt 0:08:24]} ({Predecessor:} 12. h3 Ne8 13. b3 Nc7 14. Bb2 e5 15. a4 Bc8 16. Nd2 Rb8 17. Rfb1 Ne8 18. Ba3 Qc7 {1-0 (36) Doric,D (2456)-Novak,D (2372) Sibenik 2009}) 12... a5 {[%emt 0:04:49]} 13. Rb1 {[%emt 0:05:56]} Ba6 {[%emt 0:07:18]} 14. b3 {[%emt 0:06:42]} Rfb8 {[%emt 0:11:33]} 15. Bd2 {[%emt 0:05:55]} Qc7 {[%emt 0:04:56]} 16. Rfe1 {[%emt 0:06:44]} Ng4 {[%emt 0:00:21]} 17. Bxa6 {[%emt 0:04:04]} Rxa6 {[%emt 0:00:08]} 18. Ne2 {[%emt 0:00:47]} Rb7 {[%emt 0:06:43]} 19. h3 {[%emt 0:07:10]} Nge5 {[%emt 0:00:32]} 20. Nxe5 {[%emt 0:00:08]} Bxe5 {[%emt 0:02:13]} 21. Rec1 {[%emt 0:03:57]} Ra8 {[%emt 0:04:44]} 22. Qd3 {[%emt 0:05:28]} Nb8 {[%emt 0:01:09]} 23. f4 {[%emt 0:05:35]} Bg7 {[%emt 0:00:10]} 24. Rc4 {[%emt 0:00:43]} Na6 {[%emt 0:03:56]} 25. Ra4 {[%emt 0:09:34]} Qb6 {[%emt 0:11:12]} 26. Kh1 {[%emt 0:00:28]} Nc7 {[%emt 0:01:23]} 27. Bc3 {[%emt 0:03:39]} Qb5 {[%emt 0:03:25]} 28. Qd2 {[%emt 0:01:37]} Qxa4 {[%emt 0:01:50]} 29. bxa4 $15 {[%emt 0:00:38]} Rxb1+ {[%emt 0:00:05]} 30. Kh2 {[%emt 0:00:15]} Bxc3 {[%emt 0:00:16]} 31. Nxc3 {[%emt 0:00:14]} Rb4 {[%emt 0:00:18]} 32. a3 {[%emt 0:00:59]} Rb3 {[%emt 0:01:56]} 33. Qc2 {[%emt 0:00:26]} Rb6 {[%emt 0:02:19]} 34. e5 {[%emt 0:02:49]} Rab8 {[%emt 0:00:42]} 35. exd6 {[%emt 0:00:50]} exd6 {[%emt 0:00:07]} 36. f5 {[%emt 0:02:30]} Rb2 {[%emt 0:03:21]} 37. Qc1 {[%emt 0:01:16]} Rf2 {[%emt 0:05:16]} 38. Ne4 {[%emt 0:02:02]} Rxf5 {[%emt 0:00:59]} 39. Qc3 {[%emt 0:01:49]} Nxd5 {[%emt 0:01:44]} 40. Qxa5 {[%emt 0:00:00]} Ne3 {[%emt 0:02:37]} 41. Qc3 {[%emt 0:13:04]} Nf1+ {[%emt 0:04:11]} 42. Kg1 {[%emt 0:00:19]} Rb1 {[%emt 0:02:26]} 43. Qd3 {[%emt 0:04:18]} Re1 {[%emt 0:06:54]} 44. g4 {[%emt 0:12:32]} Rf3 {[%emt 0:06:36]} 45. Qxf3 {[%emt 0:02:58]} Nd2+ {[%emt 0:00:07]} 46. Kg2 {[%emt 0:00:59]} Nxf3 {[%emt 0:00:07]} 47. Kxf3 {[%emt 0:00:13]} Ra1 0-1

[Event "ESTCC U50 2018"]
[Site "Walbrzych"]
[Date "2018.04.16"]
[Round "3"]
[White "Bowmer, Kevin"]
[Black "Lopez de Turiso, Jose Angel"]
[Result "1/2-1/2"]
[ECO "C10"]
[WhiteElo "2064"]
[BlackElo "2064"]
[Annotator "NA RC"]
[PlyCount "34"]
[EventDate "2018.??.??"]
[EventCountry "POL"]
[SourceTitle "playchess.com"]
[Source "ChessBase"]
[SourceQuality "1"]
[WhiteTeam "England"]
[BlackTeam "Spain"]
[WhiteTeamCountry "ENG"]
[BlackTeamCountry "ESP"]
[TimeControl "40/5400+30:1800+30"]

1. e4 {[%emt 0:00:00]} e6 {[%emt 0:00:15]} 2. d4 {[%emt 0:00:00]} d5 {[%emt 0:00:07]} 3. Nd2 {[%emt 0:00:08]} dxe4 {[%emt 0:00:15]} 4. Nxe4 {[%emt 0:00:16]} Nd7 {[%emt 0:00:12]} 5. Nf3 {[%emt 0:01:52]} Ngf6 {[%emt 0:00:19]} 6. Nxf6+ {[%emt 0:00:52]} Nxf6 {[%emt 0:00:14]} 7. c3 {[%emt 0:00:27]} c5 {[%emt 0:05:08]} 8. Be3 {[%emt 0:01:56] LiveBook: 101 Games} Qc7 {[%emt 0:06:50]} 9. Ne5 {[%emt 0:03:29]} Bd6 {[%emt 0:06:18]} 10. Nc4 {[%emt 0:09:35]} Be7 {[%emt 0:02:39]} 11. dxc5 {[%emt 0:07:54]} Bxc5 $11 {[%emt 0:00:38]} 12. Bxc5 {[%emt 0:04:37]} Qxc5 {[%emt 0:00:11]} 13. Qd6 {[%emt 0:04:19]} Qxd6 {[%emt 0:02:35]} 14. Nxd6+ {[%emt 0:00:09]} Ke7 {[%emt 0:00:05]} 15. Nxc8+ {[%emt 0:01:18]} Raxc8 {[%emt 0:00:08]} 16. Be2 {[%emt 0:05:22]} Rhd8 {[%emt 0:03:59]} 17. Rd1 {[%emt 0:04:39]} Rxd1+ {[%emt 0:07:13]} 1/2-1/2

[Event "ESTCC U50 2018"]
[Site "Walbrzych"]
[Date "2018.04.16"]
[Round "3"]
[White "Van Herck, Marcel"]
[Black "Strzelecki, Jerzy"]
[Result "1/2-1/2"]
[ECO "B48"]
[WhiteElo "2061"]
[BlackElo "2038"]
[Annotator "NA RC"]
[PlyCount "97"]
[EventDate "2018.??.??"]
[EventCountry "POL"]
[SourceTitle "playchess.com"]
[Source "ChessBase"]
[SourceQuality "1"]
[WhiteTeam "Belgium"]
[BlackTeam "Poland"]
[WhiteTeamCountry "BEL"]
[BlackTeamCountry "POL"]
[TimeControl "40/5400+30:1800+30"]

1. e4 {[%emt 0:00:00]} c5 {[%emt 0:00:31]} 2. Nf3 {[%emt 0:00:11]} e6 {[%emt 0:00:11]} 3. d4 {[%emt 0:00:11]} cxd4 {[%emt 0:00:09]} 4. Nxd4 {[%emt 0:00:07]} Nc6 {[%emt 0:00:15]} 5. Nc3 {[%emt 0:00:16]} Qc7 {[%emt 0:00:31]} 6. Be3 {[%emt 0:00:14]} a6 {[%emt 0:00:15]} 7. Qf3 {[%emt 0:00:26]} b5 {[%emt 0:13:27]} 8. Nxc6 {[%emt 0:07:44]} Qxc6 {[%emt 0:00:29]} 9. Bd3 {[%emt 0:01:45]} Bb7 {[%emt 0:00:48] LiveBook: 15 Games} 10. Qg3 {[%emt 0:03:29]} Nf6 {[%emt 0:12:14]} 11. f3 {[%emt 0:04:04]} d6 {[%emt 0:07:32]} 12. a3 {[%emt 0:08:35]} Qc7 {[%emt 0:09:15]} 13. O-O {[%emt 0:05:39]} g6 {[%emt 0:02:45]} 14. Rad1 {[%emt 0:07:07]} e5 $16 {[%emt 0:05:57]} (14... Be7 $11) 15. Rd2 {[%emt 0:32:18]} Be7 {[%emt 0:03:12]} 16. Rfd1 {[%emt 0:00:57]} O-O {[%emt 0:00:29]} 17. Bxb5 {[%emt 0:01:12]} Nh5 {[%emt 0:01:18]} 18. Qf2 {[%emt 0:00:52]} axb5 {[%emt 0:01:42]} 19. Nxb5 {[%emt 0:00:06]} Qc6 {[%emt 0:01:58]} 20. Nxd6 {[%emt 0:00:15]} Rfd8 {[%emt 0:04:41]} 21. Nxb7 {[%emt 0:00:30]} Qxb7 {[%emt 0:00:18]} 22. Rxd8+ {[%emt 0:01:53]} Rxd8 {[%emt 0:02:18]} 23. Rxd8+ {[%emt 0:01:03]} Bxd8 {[%emt 0:00:09]} 24. c4 {[%emt 0:06:31]} Qb3 {[%emt 0:03:45]} 25. Qd2 {[%emt 0:02:20]} Ba5 {[%emt 0:01:23]} 26. Qc1 {[%emt 0:00:26]} Nf4 {[%emt 0:05:08]} 27. Bxf4 {[%emt 0:00:21]} exf4 {[%emt 0:00:32]} 28. c5 {[%emt 0:00:34]} Kf8 {[%emt 0:06:59]} 29. Kf1 {[%emt 0:00:17]} Ke8 {[%emt 0:00:36]} 30. Ke2 {[%emt 0:01:21]} Bc7 {[%emt 0:02:02]} 31. c6 {[%emt 0:02:05]} g5 {[%emt 0:03:46]} 32. Kd2 {[%emt 0:05:22]} Qe3+ {[%emt 0:00:52]} 33. Kc2 {[%emt 0:00:07]} Ke7 {[%emt 0:01:37]} 34. Qxe3 {[%emt 0:01:23]} fxe3 {[%emt 0:00:11]} 35. b4 {[%emt 0:01:06]} Kd6 {[%emt 0:00:52]} 36. b5 {[%emt 0:02:29]} Kc5 {[%emt 0:00:27]} 37. a4 {[%emt 0:00:44]} Bxh2 {[%emt 0:03:33]} 38. Kd3 {[%emt 0:00:07]} Bf4 {[%emt 0:01:04]} 39. e5 {[%emt 0:00:58]} Bxe5 {[%emt 0:00:54]} 40. Kxe3 {[%emt 0:00:00]} f5 {[%emt 0:02:49]} 41. g4 {[%emt 0:00:57]} fxg4 {[%emt 0:00:15]} 42. fxg4 {[%emt 0:00:03]} Bc7 {[%emt 0:00:25]} 43. Ke4 {[%emt 0:00:19]} Kb4 {[%emt 0:04:47]} 44. Kf5 {[%emt 0:00:14]} Bd8 {[%emt 0:08:18]} 45. b6 {[%emt 0:04:54]} Bxb6 {[%emt 0:00:11]} 46. Kxg5 {[%emt 0:00:05]} Kxa4 {[%emt 0:00:19]} 47. Kh6 {[%emt 0:00:06]} Kb5 {[%emt 0:00:04]} 48. Kxh7 {[%emt 0:00:05]} Kxc6 {[%emt 0:00:06]} 49. g5 1/2-1/2

[Event "ESTCC U50 2018"]
[Site "Walbrzych"]
[Date "2018.04.16"]
[Round "3"]
[White "Czyz, Andrzej"]
[Black "Van de Wynkele, Herman"]
[Result "1/2-1/2"]
[ECO "A00"]
[WhiteElo "1999"]
[BlackElo "2048"]
[Annotator "NA RC"]
[PlyCount "166"]
[EventDate "2018.??.??"]
[EventCountry "POL"]
[SourceTitle "playchess.com"]
[Source "ChessBase"]
[SourceQuality "1"]
[WhiteTeam "Poland"]
[BlackTeam "Belgium"]
[WhiteTeamCountry "POL"]
[BlackTeamCountry "BEL"]
[TimeControl "40/5400+30:1800+30"]

1. b4 {[%emt 0:00:00]} a5 {[%emt 0:00:33]} 2. b5 {[%emt 0:00:39]} c5 {[%emt 0:00:57]} 3. a4 {[%emt 0:00:45]} d5 {[%emt 0:00:56]} 4. e3 {[%emt 0:01:36]} e5 {[%emt 0:02:18]} 5. Bb2 {[%emt 0:01:22]} Nd7 {[%emt 0:00:41]} 6. d4 {[%emt 0:04:32]} exd4 {[%emt 0:00:59]} 7. exd4 {[%emt 0:01:03]} c4 {[%emt 0:00:22]} 8. Be2 {[%emt 0:01:12]} Bd6 {[%emt 0:02:06]} 9. Ba3 {[%emt 0:02:38]} Qe7 {[%emt 0:01:17]} 10. Bxd6 {[%emt 0:00:58]} Qxd6 {[%emt 0:00:02]} 11. Bf3 {[%emt 0:00:31]} Ne7 {[%emt 0:02:14]} 12. Ne2 {[%emt 0:01:12]} O-O {[%emt 0:00:22]} 13. O-O {[%emt 0:00:34]} Nf6 {[%emt 0:00:53]} 14. Nbc3 {[%emt 0:01:30]} b6 {[%emt 0:10:34]} 15. Re1 {[%emt 0:03:57]} Re8 {[%emt 0:02:51]} 16. Ng3 {[%emt 0:02:21]} Bd7 {[%emt 0:01:07]} 17. Re5 {[%emt 0:03:45]} Be6 {[%emt 0:03:39]} 18. Qd2 {[%emt 0:02:53]} Ng6 {[%emt 0:08:22]} 19. Rae1 {[%emt 0:01:10]} Qd7 {[%emt 0:01:47]} 20. R5e2 {[%emt 0:08:10]} Kf8 {[%emt 0:00:53]} 21. Nh5 {[%emt 0:08:07]} Nxh5 {[%emt 0:18:08]} 22. Bxh5 $11 {[%emt 0:02:08]} Qd6 {[%emt 0:01:07]} 23. g3 {[%emt 0:05:05]} f6 {[%emt 0:04:23]} 24. Bf3 {[%emt 0:02:46]} Bf7 {[%emt 0:01:59]} 25. h4 {[%emt 0:06:22]} Rxe2 {[%emt 0:00:15]} 26. Rxe2 {[%emt 0:00:06]} Re8 {[%emt 0:00:21]} 27. Rxe8+ {[%emt 0:01:14]} Kxe8 {[%emt 0:00:13]} 28. Qe3+ {[%emt 0:06:46]} Ne7 {[%emt 0:00:29]} 29. Kh2 {[%emt 0:01:59]} Kf8 {[%emt 0:00:30]} 30. Kg2 {[%emt 0:02:02]} Bg6 {[%emt 0:04:49]} 31. Qe2 Bf5 32. g4 {[%emt 0:05:34]} Be6 {[%emt 0:00:47]} 33. Qe3 {[%emt 0:00:37]} Ng6 {[%emt 0:07:11]} 34. h5 {[%emt 0:02:14]} Nf4+ {[%emt 0:05:47]} 35. Kf1 {[%emt 0:02:55]} f5 {[%emt 0:03:25]} 36. g5 {[%emt 0:01:12]} Bf7 {[%emt 0:00:59]} 37. Ke1 {[%emt 0:08:17]} Bxh5 {[%emt 0:02:27]} 38. Kd2 {[%emt 0:00:04]} Bf7 {[%emt 0:01:01]} 39. Bh1 {[%emt 0:01:40]} Ng6 {[%emt 0:01:23]} 40. Qf3 {[%emt 0:01:57]} Ne7 {[%emt 0:32:32]} 41. Qh3 {[%emt 0:03:52]} h6 {[%emt 0:00:00]} 42. gxh6 {[%emt 0:00:45]} Qxh6+ {[%emt 0:00:00]} 43. Qxh6 {[%emt 0:00:01]} gxh6 {[%emt 0:00:00]} 44. Ke3 {[%emt 0:01:53]} Kg7 {[%emt 0:00:00]} 45. Kf4 {[%emt 0:00:53]} Kf6 {[%emt 0:00:00]} 46. Kg3 Kg5 47. f4+ {[%emt 0:04:05]} Kf6 {[%emt 0:00:00]} 48. Nd1 {[%emt 0:01:37]} Ke6 {[%emt 0:00:00]} 49. Ne3 {[%emt 0:00:14]} Kd6 {[%emt 0:00:00]} 50. c3 {[%emt 0:02:14]} Be6 {[%emt 0:00:00]} 51. Bg2 {[%emt 0:00:46]} Bf7 {[%emt 0:00:00]} 52. Bh3 {[%emt 0:00:52]} Ke6 {[%emt 0:00:00]} 53. Bg2 {[%emt 0:00:04]} Kf6 {[%emt 0:00:00]} 54. Bf3 {[%emt 0:00:25]} Ke6 {[%emt 0:00:00]} 55. Bg2 {[%emt 0:01:08]} Bh5 {[%emt 0:00:00]} 56. Bf1 {[%emt 0:01:32]} Ng8 {[%emt 0:00:00]} 57. Bh3 {[%emt 0:00:11]} Bg6 {[%emt 0:00:00]} 58. Bf1 {[%emt 0:02:47]} Nf6 {[%emt 0:00:00]} 59. Bg2 {[%emt 0:00:03]} Bh5 {[%emt 0:00:00]} 60. Kh4 {[%emt 0:02:06]} Be2 {[%emt 0:00:00]} 61. Bh3 {[%emt 0:01:39]} Bd3 {[%emt 0:00:00]} 62. Bg2 {[%emt 0:00:36]} Be4 {[%emt 0:00:00]} 63. Bh3 {[%emt 0:00:14]} Bd3 {[%emt 0:00:00]} 64. Bg2 {[%emt 0:01:44]} Be2 {[%emt 0:00:00]} 65. Bh3 {[%emt 0:00:15]} Bg4 {[%emt 0:00:00]} 66. Bxg4 {[%emt 0:03:53]} Nxg4 {[%emt 0:00:00]} 67. Nxg4 {[%emt 0:00:05]} fxg4 {[%emt 0:00:01]} 68. Kxg4 {[%emt 0:00:17]} Kf6 {[%emt 0:00:08]} 69. Kh5 {[%emt 0:02:13]} Kf5 {[%emt 0:00:06]} 70. Kxh6 {[%emt 0:00:06]} Kxf4 {[%emt 0:00:05]} 71. Kg6 {[%emt 0:00:07]} Ke4 {[%emt 0:00:08]} 72. Kf6 {[%emt 0:00:02]} Kd3 {[%emt 0:00:07]} 73. Ke5 {[%emt 0:00:08]} Kxc3 {[%emt 0:00:06]} 74. Kxd5 {[%emt 0:00:15]} Kb4 {[%emt 0:00:43]} 75. Kc6 {[%emt 0:00:38]} c3 {[%emt 0:00:06]} 76. Kxb6 {[%emt 0:00:19]} c2 {[%emt 0:00:07]} 77. Ka7 {[%emt 0:00:32]} c1=Q {[%emt 0:00:37]} 78. b6 {[%emt 0:00:06]} Qc4 {[%emt 0:00:31]} 79. b7 {[%emt 0:00:34]} Qxd4+ {[%emt 0:00:06]} 80. Ka8 {[%emt 0:00:17]} Qd5 {[%emt 0:00:35]} 81. Ka7 {[%emt 0:00:03]} Qxb7+ {[%emt 0:01:35]} 82. Kxb7 {[%emt 0:00:03]} Kxa4 {[%emt 0:00:05]} 83. Kb6 {[%emt 0:00:14]} Kb4 {[%emt 0:00:02]} 1/2-1/2

[Event "ESTCC U50 2018"]
[Site "Walbrzych"]
[Date "2018.04.16"]
[Round "3"]
[White "Pietinen, Pekka"]
[Black "Laszewicz, Pawel"]
[Result "0-1"]
[ECO "C67"]
[WhiteElo "1983"]
[BlackElo "2110"]
[Annotator "NA"]
[PlyCount "48"]
[EventDate "2018.??.??"]
[EventCountry "POL"]
[SourceTitle "playchess.com"]
[Source "ChessBase"]
[SourceQuality "1"]
[WhiteTeam "Finland"]
[BlackTeam "Poland"]
[WhiteTeamCountry "FIN"]
[BlackTeamCountry "POL"]
[TimeControl "40/5400+30:1800+30"]

1. e4 {[%emt 0:01:16]} e5 {[%emt 0:00:12]} 2. Nf3 {[%emt 0:00:14]} Nc6 {[%emt 0:00:08]} 3. Bb5 {[%emt 0:00:13]} Nf6 {[%emt 0:00:51]} 4. O-O {[%emt 0:03:46]} Nxe4 {[%emt 0:00:41]} 5. Re1 {[%emt 0:03:47]} Nd6 {[%emt 0:01:02]} 6. Nxe5 {[%emt 0:00:59]} Nxe5 {[%emt 0:02:40]} 7. Rxe5+ {[%emt 0:00:05]} Be7 {[%emt 0:00:18]} 8. Bf1 {[%emt 0:00:26]} O-O {[%emt 0:00:29]} 9. Nc3 {[%emt 0:01:07]} Bf6 {[%emt 0:02:12]} 10. Re1 {[%emt 0:00:26]} c6 {[%emt 0:00:51]} 11. d3 {[%emt 0:04:22]} Nf5 {[%emt 0:04:01]} 12. Ne4 {[%emt 0:02:03]} Be7 {[%emt 0:01:31]} 13. Bf4 {[%emt 0:03:09]} d5 {[%emt 0:01:07]} 14. Ng3 {[%emt 0:00:24]} Nh4 {[%emt 0:05:11]} 15. Ne2 {[%emt 0:09:17]} Ng6 {[%emt 0:14:44]} 16. Bg3 {[%emt 0:02:14]} Qb6 {[%emt 0:17:22]} 17. Nf4 {[%emt 0:05:37]} Bc5 {[%emt 0:04:27]} 18. Nxg6 {[%emt 0:03:34]} fxg6 {[%emt 0:01:21]} 19. Rb1 {[%emt 0:00:43]} Bxf2+ {[%emt 0:01:51]} 20. Bxf2 {[%emt 0:01:08]} Qxf2+ {[%emt 0:00:38]} 21. Kh1 {[%emt 0:00:02]} Bd7 {[%emt 0:02:59]} 22. Re2 {[%emt 0:04:51]} Qf6 {[%emt 0:01:28]} 23. Rd2 {[%emt 0:00:19]} Qg5 {[%emt 0:06:43]} 24. d4 {[%emt 0:05:10]} Rxf1+ {[%emt 0:02:09]} 0-1

[Event "ESTCC U50 2018"]
[Site "Walbrzych"]
[Date "2018.04.16"]
[Round "3"]
[White "Ciuro Munoz, Ricardo"]
[Black "Reuben, Stewart"]
[Result "1/2-1/2"]
[ECO "B30"]
[WhiteElo "1972"]
[BlackElo "2026"]
[Annotator "NA RC"]
[PlyCount "160"]
[EventDate "2018.??.??"]
[EventCountry "POL"]
[SourceTitle "playchess.com"]
[Source "ChessBase"]
[SourceQuality "1"]
[WhiteTeam "Spain"]
[BlackTeam "England"]
[WhiteTeamCountry "ESP"]
[BlackTeamCountry "ENG"]
[TimeControl "40/5400+30:1800+30"]

1. e4 c5 2. Nf3 Nc6 3. d3 g6 4. g3 Bg7 5. Bg2 e6 6. O-O Nge7 7. Nbd2 O-O 8. a4 {A04: Unusual lines after 1 Nf3 and King's Indian Attack} d5 9. exd5 $146 ({Predecessor:} 9. Re1 b6 10. c3 Ba6 11. exd5 exd5 12. d4 cxd4 13. Nxd4 Nxd4 14. cxd4 Bxd4 {½-½ (29) Levitt,M (2290)-Psakhis,L (2590) Yerevan 1996}) 9... exd5 10. Re1 Nf5 11. Nb3 b6 12. Bg5 Bf6 13. Bxf6 Qxf6 14. c3 Be6 15. d4 c4 16. Nbd2 Rac8 17. Qe2 Rfe8 18. Ne5 Nxe5 19. Qxe5 Kg7 20. Qxf6+ Kxf6 21. Re5 Ne7 22. Rae1 Nc6 23. R5e3 Ne7 24. Nf3 Rb8 25. h4 h6 26. Ne5 b5 27. axb5 Rxb5 28. Ra1 a5 29. Re2 Reb8 30. Ra2 a4 31. Bf3 Ra5 32. Bg4 Rb6 33. Bxe6 Rxe6 34. Nd7+ Kf5 35. Rxe6 fxe6 36. Nc5 e5 37. Nb7 Ra7 38. Nd6+ Ke6 39. dxe5 Kxe5 40. Nb5 Ra5 41. Nd4 Kd6 42. f4 Nc6 43. Nc2 Kc5 44. Kf2 d4 45. cxd4+ Nxd4 46. Nxd4 Kxd4 47. Kf3 c3 48. bxc3+ Kxc3 49. g4 a3 50. Ke4 Kb3 51. Rf2 a2 52. Rf1 a1=Q 53. Rxa1 Rxa1 54. f5 gxf5+ 55. Kxf5 Kc4 56. g5 hxg5 57. hxg5 Kd5 58. Kf6 Rf1+ 59. Ke7 Ke5 60. g6 Rb1 61. g7 Rb7+ 62. Kf8 Kf6 63. g8=N+ Ke6 64. Nh6 Rh7 65. Ng8 Rf7+ 66. Ke8 Ra7 67. Kf8 $1 Kf5 68. Ne7+ Kf6 69. Ng8+ Ke6 70. Nh6 Rb7 71. Ng8 Rh7 72. Ke8 Rc7 73. Kf8 $1 Kf5 74. Ne7+ Ke6 75. Ng8 Rf7+ 76. Ke8 Ra7 77. Kf8 Kf5 78. Ne7+ Ke6 79. Ng8 $15 Rb7 80. Nh6 Rb5 1/2-1/2

[Event "ESTCC U50 2018"]
[Site "Walbrzych"]
[Date "2018.04.16"]
[Round "3"]
[White "Szmyd, Marek"]
[Black "Puroila, Sippo"]
[Result "1-0"]
[ECO "A01"]
[WhiteElo "1898"]
[BlackElo "1838"]
[Annotator "NA RC"]
[PlyCount "77"]
[EventDate "2018.??.??"]
[EventCountry "POL"]
[SourceTitle "playchess.com"]
[Source "ChessBase"]
[SourceQuality "1"]
[WhiteTeam "Poland"]
[BlackTeam "Finland"]
[WhiteTeamCountry "POL"]
[BlackTeamCountry "FIN"]
[TimeControl "40/5400+30:1800+30"]

1. b3 d5 2. Bb2 Bf5 3. e3 Nc6 4. Nf3 Qd6 5. Bb5 a6 6. Bxc6+ bxc6 7. O-O Nf6 8. h3 h5 9. Re1 h4 10. d3 Nd7 11. e4 dxe4 12. Nd4 Bg6 13. dxe4 e5 14. Nf3 Qxd1 15. Rxd1 Bxe4 16. Nxe5 Nxe5 17. Bxe5 Bxc2 18. Rd2 Bf5 19. Nc3 Rd8 20. Rad1 Rxd2 21. Rxd2 Bb4 22. Bxg7 Rg8 23. Bf6 Bd6 24. Kf1 Kd7 25. Bxh4 Kc8 26. g4 Bg6 27. Bf6 Bf4 28. Rd4 Bd6 29. Ne4 Ba3 30. Ra4 c5 31. f3 Bb4 32. a3 Bxe4 33. fxe4 Bd2 34. Rc4 Re8 35. Ke2 Re6 36. g5 Bf4 37. Kf3 Be5 38. Bxe5 Rh6 39. gxh6 1-0

[Event "ESTCC U50 2018"]
[Site "Walbrzych"]
[Date "2018.04.16"]
[Round "3"]
[White "Jones, Gareth"]
[Black "Ruiz Bellon, Manuel"]
[Result "1-0"]
[ECO "D78"]
[WhiteElo "1858"]
[BlackElo "1861"]
[Annotator "NA RC"]
[PlyCount "57"]
[EventDate "2018.??.??"]
[EventCountry "POL"]
[SourceTitle "playchess.com"]
[Source "ChessBase"]
[SourceQuality "1"]
[WhiteTeam "England"]
[BlackTeam "Spain"]
[WhiteTeamCountry "ENG"]
[BlackTeamCountry "ESP"]
[TimeControl "40/5400+30:1800+30"]

1. Nf3 {[%emt 0:00:00]} g6 {[%emt 0:00:12]} 2. g3 {[%emt 0:00:00]} Bg7 {[%emt 0:00:08]} 3. d4 {[%emt 0:00:06]} d5 {[%emt 0:00:53]} 4. Bg2 {[%emt 0:00:10]} Nf6 {[%emt 0:00:14]} 5. O-O {[%emt 0:00:08]} O-O {[%emt 0:00:05]} 6. c4 {[%emt 0:00:23]} c6 {[%emt 0:00:51]} 7. b3 {[%emt 0:00:47]} Bg4 {[%emt 0:05:31]} 8. Nbd2 {[%emt 0:02:27]} Qc8 {[%emt 0:01:27]} 9. Ba3 {[%emt 0:04:32]} Re8 {[%emt 0:04:10]} 10. Rc1 {[%emt 0:02:29]} Qe6 {[%emt 0:08:09]} 11. Re1 {[%emt 0:05:50]} Bh6 {[%emt 0:05:11]} 12. Ne5 {[%emt 0:03:49]} Bh3 {[%emt 0:02:00]} 13. Bf3 {[%emt 0:04:41]} Nbd7 {[%emt 0:02:25]} 14. Nxd7 {[%emt 0:07:27]} Qxd7 {[%emt 0:00:20]} 15. e3 {[%emt 0:04:41]} e5 {[%emt 0:12:20]} 16. dxe5 {[%emt 0:04:04]} Rxe5 {[%emt 0:00:34]} 17. Bb2 {[%emt 0:00:59]} Rf5 {[%emt 0:05:55]} 18. g4 {[%emt 0:07:11]} Nxg4 {[%emt 0:03:03]} 19. Ne4 {[%emt 0:04:28]} dxe4 {[%emt 0:13:54]} 20. Qxd7 {[%emt 0:09:16]} exf3 {[%emt 0:00:24]} 21. Qd4 {[%emt 0:16:55]} f6 {[%emt 0:02:00]} 22. Rc2 {[%emt 0:04:14]} Rg5 {[%emt 0:03:57]} 23. Kh1 {[%emt 0:00:37]} Bg2+ {[%emt 0:00:11]} 24. Kg1 {[%emt 0:00:06]} Rf8 {[%emt 0:03:54]} 25. h4 {[%emt 0:00:53]} Nxf2 {[%emt 0:17:33]} 26. hxg5 {[%emt 0:03:52]} Nh3+ {[%emt 0:00:17]} 27. Kh2 {[%emt 0:00:06]} Nxg5 {[%emt 0:00:36]} 28. Rxg2 {[%emt 0:00:56]} fxg2 {[%emt 0:00:06]} 29. Kxg2 1-0